Cogmind - Beta 12 --- EXPLORER MODE // 2023.04.02 @ 16:09:37 Player: Badonion Result: Self-destructed Performance ------------- Evolutions (2) 1000 Regions Visited (7) 1400 Robots Destroyed (41) 205 Value Destroyed (1026) 1026 Prototype IDs (4) 80 Alien Tech Used (0) 0 Bonus (300) 300 TOTAL SCORE: 4011 Bonus ------- Aligned with FarCom 300 Cogmind --------- Core Integrity 539/550 Matter 300/300 Energy 125/125 System Corruption 0% Temperature Hot (215) Movement Treading (160) Location -8/Materials Parts ------- > --- POWER (1) -------- Light Ion Engine > --- PROPULSION (3) --- Light Treads Light Treads Light Treads > --- UTILITY (5) ------ Medium Storage Unit ECM Suite Utility Shielding Light Armor Plating PSU Rigger > --- WEAPON (3) ------- Small Laser Particle Gun > --- INVENTORY (10) --- Light Treads Aluminum Leg Aluminum Leg Aluminum Leg High-capacity Matter Pod (200) Structural Scanner Terrain Scanner Peak State ------------ > --- POWER ------------ Improved Ion Engine > --- PROPULSION ------- Light Treads Light Treads Light Treads > --- UTILITY ---------- Improved Heat Sink Medium Storage Unit ECM Suite > --- WEAPON ----------- YOLO Cannon > --- INVENTORY -------- Light Treads Aluminum Leg Aluminum Leg Aluminum Leg High-capacity Matter Pod Structural Scanner Terrain Scanner Utility Shielding Light Armor Plating Small Laser [Rating: 31] Favorites ----------- Power Ion Engine Engine Ion Engine Propulsion Aluminum Leg Treads Light Treads Leg Aluminum Leg Utility Medium Storage Unit Device Structural Scanner Storage Medium Storage Unit Processor Signal Interpreter Protection Light Armor Plating Weapon Assault Rifle Energy Gun Particle Gun Energy Cannon YOLO Cannon Ballistic Gun Assault Rifle Build | -11 -10 -10 -9 -9 -9 -8 -8 ------- Run | Jun Mat Min Mat Min Exi Min Mat Slots Evolved 5 | . 1 . 2 . . . 2 Power . | . . . . . . . . Propulsion 1 | . . . 1 . . . . Utility 3 | . 1 . 1 . . . 1 Weapon 1 | . . . . . . . 1 Parts Attached 38 | 7 4 2 11 . 9 3 2 Power 4 | 1 . . 1 . . 2 . Engine 4 | 1 . . 1 . . 2 . Core . | . . . . . . . . Reactor . | . . . . . . . . Propulsion 11 | 2 1 1 6 . . 1 . Treads 5 | . . . 4 . . 1 . Leg 6 | 2 1 1 2 . . . . Wheel . | . . . . . . . . Hover . | . . . . . . . . Flight . | . . . . . . . . Utility 16 | 2 3 1 3 . 6 . 1 Device 6 | 1 . 1 2 . 2 . . Storage 5 | 1 2 . . . 2 . . Processor 2 | . . . 1 . 1 . . Hackware . | . . . . . . . . Protection 3 | . 1 . . . 1 . 1 Artifact . | . . . . . . . . Weapon 7 | 2 . . 1 . 3 . 1 Energy Gun 3 | . . . 1 . 1 . 1 Energy Cannon 1 | . . . . . 1 . . Ballistic Gun 3 | 2 . . . . 1 . . Ballistic Cannon . | . . . . . . . . Launcher . | . . . . . . . . Special Weapon . | . . . . . . . . Impact Weapon . | . . . . . . . . Slashing Weapon . | . . . . . . . . Piercing Weapon . | . . . . . . . . Special Melee Weapon . | . . . . . . . . Unidentified Prototypes 4 | . . 1 . . 3 . . Parts Lost 3 | . . . 1 . . 1 1 Power 1 | . . . . . . 1 . Propulsion . | . . . . . . . . Utility 1 | . . . 1 . . . . Weapon 1 | . . . . . . . 1 Highest Loss Streak 1 | . . . 1 . . 1 1 To Critical Strikes . | . . . . . . . . Average Slot Usage (%) 95 | . 87 98 95 100 93 98 91 Engine 10 | . 12 12 10 10 10 8 8 Treads 10 | . . . 8 30 30 30 25 Leg 16 | . 25 25 19 . . . . Device 21 | . 12 23 22 30 24 20 16 Storage 10 | . 12 12 10 10 10 10 8 Protection 1 | . . . . . . 10 16 Energy Gun 4 | . . . 4 10 9 10 10 Ballistic Gun 18 | . 25 25 15 10 9 10 6 Naked Turns . | . . . . . . . . Heaviest Build 29 | 20 20 21 26 26 29 29 27 Greatest Support 60 | 20 20 20 60 60 60 60 60 Greatest Overweight (x) 7 | . . 1 . . . 7 . Average Overweight (x) . | . . . . . . . . Largest Inventory Capacity 35 | 10 15 10 10 10 35 10 10 Average Capacity 9 | 8 10 10 10 10 10 10 10 Most Carried 10 | 8 10 10 10 9 10 10 8 Average Carried 9 | 4 8 10 9 9 9 9 7 Final Capacity 10 | 10 10 10 10 10 10 10 10 Final Carried 10 | 7 10 10 9 9 9 9 7 Class Distribution -------------------- 89% | Hacker-Mutant 7% | Hacker-Skirmisher Dominant Class ---------------- Hacker-Mutant | -10/Materials Hacker-Mutant | -10/Mines Hacker-Skirmisher | -9/Materials Hacker-Mutant | -9/Mines Hacker-Mutant | -9/Exiles Hacker-Mutant | -8/Mines Hacker-Mutant | -8/Materials Resources | -11 -10 -10 -9 -9 -9 -8 -8 ----------- Run | Jun Mat Min Mat Min Exi Min Mat Matter Collected 1325 | 270 230 258 327 . 20 199 21 Remotely . | . . . . . . . . Salvage Created 1281 | . 346 86 538 . . 216 95 Parts 100 | . 29 10 47 . . 10 4 Haulers Intercepted . | . . . . . . . . Recyclers Shooed 1 | . . . . . . 1 . Parts Field Recycled . | . . . . . . . . Retrieved Matter . | . . . . . . . . Parts Self-Destructed . | . . . . . . . . Prevented . | . . . . . . . . Kills | -11 -10 -10 -9 -9 -9 -8 -8 ------- Run | Jun Mat Min Mat Min Exi Min Mat Combat Hostiles Destroyed 27 | . 6 6 11 . . 2 2 Guns 27 | . 6 6 11 . . 2 2 Classes Destroyed 10 | . 5 . 3 . . 2 . Worker 1 | . 1 . . . . . . Builder 1 | . . . . . . 1 . Tunneler 3 | . . . 2 . . 1 . Recycler 2 | . 1 . . . . 1 . Operator 1 | . . . 1 . . . . Watcher 6 | . 3 . 3 . . . . Swarmer 10 | . 2 6 2 . . . . Grunt 13 | . 4 . 6 . . 1 2 Duelist 1 | . . . . . . 1 . Sentry 3 | . . . 3 . . . . Best Kill Streak 6 | . 4 2 6 . . 2 2 Combat Bots Only 4 | . 2 2 4 . . 1 2 Max Kills in Single Turn 2 | . 2 1 1 . . 1 1 Gunslinging . | . . . . . . . . Exploded . | . . . . . . . . Melee . | . . . . . . . . Uniques/NPCs Destroyed . | . . . . . . . . Combat | -11 -10 -10 -9 -9 -9 -8 -8 -------- Run | Jun Mat Min Mat Min Exi Min Mat Damage Taken 784 | . 55 62 228 . . 303 136 Core 46 | . . 10 7 . . 18 11 Absorbed by Shields . | . . . . . . . . Core Remaining (%) 96 | 100 . 96 . . . 93 . Volleys Fired 106 | . 20 7 42 . . 28 9 Largest 3 | . 2 2 2 . . 2 3 Hottest 125 | . 40 40 85 . . 85 125 Shots Fired 183 | . 40 14 73 . . 39 17 Gun 183 | . 40 14 73 . . 39 17 Cannon . | . . . . . . . . Launcher . | . . . . . . . . Special . | . . . . . . . . Kinetic 150 | . 40 14 66 . . 28 2 Thermal 33 | . . . 7 . . 11 15 Explosive . | . . . . . . . . Electromagnetic . | . . . . . . . . Robot Hit Streak 19 | . 13 6 14 . . 17 19 Robot Miss Streak 1 | . 1 1 1 . . 1 . Penetration Max . | . . . . . . . . Secondary Targets 1 | . . . . . . 1 . Max Gunslinging Chain 1 | . . . . . . 1 . Shots Hit Robots 143 | . 31 8 52 . . 35 17 Core Hits 67 | . 17 6 28 . . 9 7 Critical Kills 1 | . . . 1 . . . . Critical Parts Destroyed 1 | . 1 . . . . . . Critical Strikes 2 | . 1 . 1 . . . . Destroy 2 | . 1 . 1 . . . . Melee Attacks . | . . . . . . . . Impact . | . . . . . . . . Slashing . | . . . . . . . . Piercing . | . . . . . . . . Sneak Attacks . | . . . . . . . . Combat Hostiles . | . . . . . . . . Follow-up Attacks . | . . . . . . . . Damage Inflicted 1902 | . 432 98 681 . . 466 225 Guns 1902 | . 432 98 681 . . 466 225 Cannons . | . . . . . . . . Explosions . | . . . . . . . . Melee . | . . . . . . . . Ramming . | . . . . . . . . Kinetic 1446 | . 432 98 580 . . 310 26 Thermal 456 | . . . 101 . . 156 199 Explosive . | . . . . . . . . Electromagnetic . | . . . . . . . . Impact . | . . . . . . . . Slashing . | . . . . . . . . Piercing . | . . . . . . . . Highest Corruption . | . . . . . . . . Average Corruption . | . . . . . . . . Corruption Purged . | . . . . . . . . Corruption Blocked . | . . . . . . . . Overload Shots . | . . . . . . . . Overflow Damage . | . . . . . . . . Projectiles . | . . . . . . . . Explosions . | . . . . . . . . Melee . | . . . . . . . . Knockbacks . | . . . . . . . . Impact . | . . . . . . . . Kinetic . | . . . . . . . . Secondary . | . . . . . . . . Self-Inflicted Damage . | . . . . . . . . Shots . | . . . . . . . . Rammed . | . . . . . . . . Targets Rammed . | . . . . . . . . Kicked . | . . . . . . . . Crushed . | . . . . . . . . Highest Temperature 406 | . . . 6 . . 406 360 Average Temperature 214 | . . . 6 . . 211 226 Received Heat Transfer 573 | . 39 . 174 . . 198 162 Effects 6 | . . . . . . 4 2 Shutdowns 1 | . . . . . . 1 . Energy Bleed 1 | . . . . . . 1 . Interference 2 | . . . . . . . 2 Damage (minor) 2 | . . . . . . 2 . Siege Activations . | . . . . . . . . Robots Corrupted . | . . . . . . . . Combat Hostiles . | . . . . . . . . Parts Fried . | . . . . . . . . Impact Corruptions . | . . . . . . . . Robots Melted . | . . . . . . . . Combat Hostiles . | . . . . . . . . Parts Melted 1 | . . . . . . 1 . Heat Transferred 1051 | . . . 222 . . 370 459 Parts Sabotaged . | . . . . . . . . Parts Stolen . | . . . . . . . . Parts Stripped . | . . . . . . . . Power Chain Reactions . | . . . . . . . . Missiles Intercepted . | . . . . . . . . Alert | -11 -10 -10 -9 -9 -9 -8 -8 ------- Run | Jun Mat Min Mat Min Exi Min Mat Peak Influence 182 | . 182 84 179 45 . 50 50 Initial 45 | . . 34 . 45 . . . Average 53 | . 87 35 102 45 . 13 5 Maximum Alert Level 1 | . . . 1 . . . . Low Security (%) 99 | 100 100 100 99 100 . 100 100 Level 1 . | . . . . . . . . Level 2 . | . . . . . . . . Level 3 . | . . . . . . . . Level 4 . | . . . . . . . . Level 5 . | . . . . . . . . High Security . | . . . . . . . . Max Security . | . . . . . . . . Squads Dispatched 5 | . 1 . 3 . . . 1 Investigation 1 | . 1 . . . . . . Extermination . | . . . . . . . . Reinforcement 4 | . . . 3 . . . 1 Assault . | . . . . . . . . Garrison . | . . . . . . . . Intercept . | . . . . . . . . Searches Triggered . | . . . . . . . . Construction Impeded . | . . . . . . . . Haulers Reinforced . | . . . . . . . . Active Scanning Responses . | . . . . . . . . Cargo Convoy Interrupts . | . . . . . . . . Stealth | -11 -10 -10 -9 -9 -9 -8 -8 --------- Run | Jun Mat Min Mat Min Exi Min Mat Distress Signals 3 | . 1 . 2 . . . . Communications Jammed . | . . . . . . . . Distress Signals . | . . . . . . . . Times Spotted 39 | . 10 6 18 . . 2 3 Peak Tracking Total 4 | . 4 2 2 . . 2 2 Tactical Retreats 1 | . 1 . . . . . . Traps | -11 -10 -10 -9 -9 -9 -8 -8 ------- Run | Jun Mat Min Mat Min Exi Min Mat Traps Triggered 1 | . 1 . . . . . . Indirectly . | . . . . . . . . Trap Hack Attempts . | . . . . . . . . Triggered . | . . . . . . . . Disarmed . | . . . . . . . . Reprogrammed . | . . . . . . . . Reused . | . . . . . . . . Traps Extracted . | . . . . . . . . Installed . | . . . . . . . . Triggered . | . . . . . . . . Machines | -11 -10 -10 -9 -9 -9 -8 -8 ---------- Run | Jun Mat Min Mat Min Exi Min Mat Machines Disabled 1 | . . 1 . . . . . Max in Single Turn 1 | . . 1 . . . . . Machines Repaired 1 | . 1 . . . . . . Machines Sabotaged . | . . . . . . . . Overloaded Fab Kills . | . . . . . . . . Hacking | -11 -10 -10 -9 -9 -9 -8 -8 --------- Run | Jun Mat Min Mat Min Exi Min Mat Machines Accessed 11 | . 6 . 5 . . . . Terminals 11 | . 6 . 5 . . . . Fabricators . | . . . . . . . . Repair Stations . | . . . . . . . . Recycling Units . | . . . . . . . . Scanalyzers . | . . . . . . . . Garrison Access . | . . . . . . . . Total Hacks 31 | . 20 . 11 . . . . Successful 22 | . 16 . 6 . . . . Failed 9 | . 4 . 5 . . . . Catastrophic . | . . . . . . . . Database Lockouts . | . . . . . . . . Manual 27 | . 16 . 10 . 1 . . Terminals 31 | . 20 . 11 . . . . Fabricators . | . . . . . . . . Repair Stations . | . . . . . . . . Recycling Units . | . . . . . . . . Scanalyzers . | . . . . . . . . Garrison Access . | . . . . . . . . Terminal Hacks 11 | . 9 . 2 . . . . Record 2 | . 2 . . . . . . Part Schematic 1 | . 1 . . . . . . Branch Access Points 2 | . 1 . 1 . . . . Terminal Index 2 | . 1 . 1 . . . . Locate Traps 2 | . 2 . . . . . . Zone Layout 2 | . 2 . . . . . . Fabricator Hacks . | . . . . . . . . Repair Station Hacks . | . . . . . . . . Recycling Unit Hacks . | . . . . . . . . Scanalyzer . | . . . . . . . . Garrison Access Hacks . | . . . . . . . . Unauthorized Hacks 11 | . 7 . 4 . . . . Terminals 11 | . 7 . 4 . . . . Botnet 10 | . 6 . 4 . . . . Sabotage 1 | . 1 . . . . . . Fabricators . | . . . . . . . . Repair Stations . | . . . . . . . . Recycling Units . | . . . . . . . . Scanalyzers . | . . . . . . . . Garrison Access . | . . . . . . . . Data Cores Recovered . | . . . . . . . . Used . | . . . . . . . . Hacking Detections 7 | . 3 . 4 . . . . Full Trace Events . | . . . . . . . . Feedback Events . | . . . . . . . . Feedback Blocked . | . . . . . . . . Robot Schematics Acquired . | . . . . . . . . Robots Built . | . . . . . . . . Authchips . | . . . . . . . . Time . | . . . . . . . . Total Robot Build Rating . | . . . . . . . . Part Schematics Acquired 1 | . 1 . . . . . . Parts Built . | . . . . . . . . Authchips . | . . . . . . . . Time . | . . . . . . . . Total Part Build Rating . | . . . . . . . . Parts Repaired . | . . . . . . . . Time . | . . . . . . . . Parts Recycled . | . . . . . . . . Recycled Matter . | . . . . . . . . Retrieved Matter . | . . . . . . . . Retrieved Components . | . . . . . . . . Parts Scanalyzed . | . . . . . . . . Part Schematics Acquired . | . . . . . . . . Parts Damaged . | . . . . . . . . Bothacking | -11 -10 -10 -9 -9 -9 -8 -8 ------------ Run | Jun Mat Min Mat Min Exi Min Mat Used RIF Installer . | . . . . . . . . Robots Hacked . | . . . . . . . . Non-combat . | . . . . . . . . Combat . | . . . . . . . . Robot Hacks Applied . | . . . . . . . . Relay Couplers Released . | . . . . . . . . Fabnet Peak Effective % . | . . . . . . . . Robots Rewired . | . . . . . . . . Allies Hacked . | . . . . . . . . Hacks Repelled . | . . . . . . . . Allies | -11 -10 -10 -9 -9 -9 -8 -8 -------- Run | Jun Mat Min Mat Min Exi Min Mat Total Allies . | . . . . . . . . Largest Group . | . . . . . . . . Highest-Rated Group . | . . . . . . . . Highest-Rated Ally . | . . . . . . . . Total Orders . | . . . . . . . . Ally Attacks . | . . . . . . . . Total Damage . | . . . . . . . . Kills . | . . . . . . . . Allies Corrupted . | . . . . . . . . Allies Melted . | . . . . . . . . Intel | -11 -10 -10 -9 -9 -9 -8 -8 ------- Run | Jun Mat Min Mat Min Exi Min Mat Robot Analysis Total . | . . . . . . . . Derelict Logs Recovered 1 | . . 1 . . . . . Drone Launches . | . . . . . . . . Drone Recoveries . | . . . . . . . . Exploration | -11 -10 -10 -9 -9 -9 -8 -8 ------------- Run | Jun Mat Min Mat Min Exi Min Mat Turns Passed 4489 | 93 668 1547 782 47 681 528 143 Spaces Moved 2450 | 62 477 727 437 30 412 271 34 Core 5 | 4 . . . . . 1 . Treads 888 | . . . 142 30 412 270 34 Legs 1557 | 58 477 727 295 . . . . Wheels . | . . . . . . . . Hover . | . . . . . . . . Flight . | . . . . . . . . Fastest Speed 50 | 50 120 120 120 160 160 160 160 Average Speed 152 | 115 120 180 132 160 160 160 160 Slowest Speed 400 | 120 120 190 160 160 160 400 160 Overloaded Moves . | . . . . . . . . Propulsion Burnouts . | . . . . . . . . Robots Hopped . | . . . . . . . . Cave-ins Triggered . | . . . . . . . . Exploration Rate (%) 52 | 5 81 100 49 11 89 77 5 Regions Visited 7 Branch Regions 4 Pre-discovered Areas 1 | . . 1 . . . . . Known Exits Taken 7 | 1 1 1 1 1 1 1 . Unknown Exits Taken . | . . . . . . . . Scrap Searched 1 | . . 1 . . . . . Spaces Dug . | . . . . . . . . Terrain Destroyed . | . . . . . . . . Melee . | . . . . . . . . Projectile . | . . . . . . . . AOE . | . . . . . . . . Terrain Rammed . | . . . . . . . . Walls Destroyed . | . . . . . . . . Machines Disabled . | . . . . . . . . Actions | -11 -10 -10 -9 -9 -9 -8 -8 --------- Run | Jun Mat Min Mat Min Exi Min Mat Total 3021 | 83 534 944 567 29 434 324 106 Wait 379 | 1 24 209 64 . . 20 61 Move 2443 | 61 476 726 436 29 411 270 34 Hop . | . . . . . . . . Pick Up 33 | 14 6 . 6 . 5 2 . Fast Attach 12 | . . 1 3 . 8 . . Attach 21 | 7 3 . 6 . 1 2 2 Detach 1 | . 1 . . . . . . Swap 5 | . 1 1 2 . . 1 . Drop 21 | . 3 . 8 . 9 1 . Fire 106 | . 20 7 42 . . 28 9 Melee . | . . . . . . . . Ram . | . . . . . . . . Kick . | . . . . . . . . Crush . | . . . . . . . . Escape Stasis . | . . . . . . . . Rewire . | . . . . . . . . Trap . | . . . . . . . . Miscellaneous . | . . . . . . . . Route ------- -11/Junkyard -10/Materials (discovered 5 exits: *Mat x3 / *Min x2) -10/Mines (discovered 2 exits: *Mat x2) -9/Materials (discovered 2 exits: *Mat / *Min) -9/Mines -9/Exiles -8/Mines -8/Materials History --------- Turn | Location | Event 2 | -11/Junkyard | Identified exit to Materials 2 | -11/Junkyard | Discovered exit to Materials (range 16) 94 | -11/Junkyard | Entered Materials 94 | -10/Materials | Evolved 1 slot: Utility x1 165 | -10/Materials | Identified exit to Mines 165 | -10/Materials | Discovered exit to Mines (range 8) 245 | -10/Materials | Identified exit to Materials 245 | -10/Materials | Discovered exit to Materials (range 9) 304 | -10/Materials | Build established: Hacker-Mutant 447 | -10/Materials | Discovered exit to Materials (range 16) 684 | -10/Materials | Discovered exit to Materials (range 14) 762 | -10/Materials | Entered Mines 794 | -10/Mines | Received a Rocket Launcher from a helpful Derelict 829 | -10/Mines | Discovered exit to Materials (range 10) 830 | -10/Mines | Learned location of Storage (-7) 886 | -10/Mines | Found a damaged Exp. Sensor Array with a note attached 888 | -10/Mines | Found Prototype Device 888 | -10/Mines | Identified Exp. Sensor Array 1501 | -10/Mines | Learned Materials trap positions 1507 | -10/Mines | Discovered exit to Materials (range 8) 2309 | -10/Mines | Entered Materials 2309 | -9/Materials | Evolved 2 slots: Propulsion x1, Utility x1 2310 | -9/Materials | Loaded intel: 21 trap records 2644 | -9/Materials | Build established: Hacker-Skirmisher 2813 | -9/Materials | Identified exit to Materials 2813 | -9/Materials | Discovered exit to Materials (range 12) 2908 | -9/Materials | Identified exit to Mines 3091 | -9/Materials | Entered Mines 3118 | -9/Mines | Build established: Hacker-Mutant 3131 | -9/Mines | Deemed a non-threat by the Exiles lab entrance 3131 | -9/Mines | Identified exit to Exiles 3131 | -9/Mines | Discovered exit to Exiles (range 5) 3138 | -9/Mines | Entered Exiles 3177 | -9/Exiles | Met 8R-AWN 3204 | -9/Exiles | Met EX-HEX 3318 | -9/Exiles | Met EX-DEC 3349 | -9/Exiles | Visited The Gauntlet 3572 | -9/Exiles | Met EX-BIN 3596 | -9/Exiles | Aligned with FarCom system 3598 | -9/Exiles | Given EX-Vault access code 3634 | -9/Exiles | Opened EX-Vault 3643 | -9/Exiles | Found Prototype Energy Cannon 3643 | -9/Exiles | Identified YOLO Cannon 3647 | -9/Exiles | Found Prototype Device 3647 | -9/Exiles | Identified PSU Rigger 3652 | -9/Exiles | Found Prototype Processor 3652 | -9/Exiles | Identified Modified TNC 3703 | -9/Exiles | Warned to stay clear of 0b10 Research branches 3803 | -9/Exiles | Identified exit to Mines 3803 | -9/Exiles | Discovered exit to Mines (range 10) 3819 | -9/Exiles | Left Exiles lab with PSU Rigger 3819 | -9/Exiles | Entered Mines 4340 | -8/Mines | Discovered exit to Materials (range 5) 4347 | -8/Mines | Entered Materials 4347 | -8/Materials | Evolved 2 slots: Utility x1, Weapon x1 4490 | -8/Materials | Self-destructed Last Messages --------------- 04451_ K-01 Serf cleans the Atomic Centrifuge. 04453_ ALERT: Hostiles spotted, dispatching reinforcements to Terminal M001. 04456_ K-01 Serf collects debris. 04460_ C-30 ARC bursts open, deploying its payload. 04460_ G-50 Soldier unfolds itself. 04460_ G-47 Trooper unfolds itself. 04460_ Critical hit (Burn: +37). 04460_ K-01 Serf collects debris. 04461_ Assault Rifle destroyed. 04466_ K-01 Serf collects debris. 04466_ G-47 Trooper destroyed. 04467_ Critical hit (Burn: +37). 04469_ K-01 Serf collects debris. 04469_ K-01 Serf destroyed. 04475_ Overheating: System interference. 04475_ ECM Suite temporarily disabled. 04478_ Acquired 11 matter. 04481_ Critical hit (Burn: +37). 04482_ G-50 Soldier destroyed. Map ----- +----------------------------------------------------+ | | | | | | | | | | | | | | | | | | | | | | | | | | | | | | | | | | | | | | | | | | | ?????????????????##########??????????????????????? | | ?????????????????# #??????????????????????? | | ?????????????????# """ #??????????????????????? | | ???????????####### """ [#??????????????????????? | | ????######## # """ *%@####???????????????????? | | ????# # %!%+%=+???????????????????? | | ????# + """ %#!##???????????????????? | | ????# # """ # #????????????????????? | | ?#######+### # """ # #????????????????????? | | ?# ####### # #????????????????????? | | ?# #?????########## #????????????????????? | | ?# #??????????????# #????????????????????? | | ?# #??????????????# #????????????????????? | | ?# #??????????????# #????????????????????? | | ?# #??????????????? ?????????????????????? | | ?# #??????????????? ?????????????????????? | | ?# #??????????????? ?????????????????????? | | ?###########??????????????? ?????????????????????? | | ??????????????????????????? ?????????????????????? | | ???????????????????????????#?????????????????????? | | ?????????????????????????????????????????????????? | | ?????????????????????????????????????????????????? | | ?????????????????????????????????????????????????? | | ?????????????????????????????????????????????????? | | ?????????????????????????????????????????????????? | | ?????????????????????????????????????????????????? | | ?????????????????????????????????????????????????? | | ?????????????????????????????????????????????????? | | ?????????????????????????????????????????????????? | +----------------------------------------------------+ Best States ------------- Heat Dissipation 42 Energy Generation 12 Energy Capacity 265 Matter Stores 300 Matter Capacity 300 Sight Range 16 Robot Scan Range 20 Terrain Scan Density 10 ECM Strength 1 Armor Coverage 150 Resistance: KI 35 Resistance: TH 35 Resistance: EX 35 Resistance: EM 35 Resistance: I 35 Resistance: S 35 Resistance: P 35 Utility Shielding 33 Evasion (%) 55 Recoil Reduction 3 Offensive Hacking 20 Item Schematics ----------------- Aluminum Leg | -10/Materials | Hacked Robot Schematics ------------------ None Fabricated ------------ Nothing Alien Tech Used ----------------- None Achievements -------------- None Challenges ------------ None Game ------ Seed AblativeWeightFrame Manual? 0 Play Time 00:33:47 Cumulative 5.8 hours Start 2023.04.02 @ 15:04:15 End 2023.04.02 @ 16:09:37 Sessions 3 Manual Loads 0 Difficulty Explorer Special Mode None Game No. 9 Rogue 2 Adventurer 0 Explorer 7 Win Type - Total 0 Types 0/0/0/0/0/0/0/0/0 Lore% 13 Gallery% 12 Achievement% 18 Wizard Run 0 Options --------- ASCII 0 Keyboard 0 Movement Mouse Keybinds 0 Fullscreen 1 Font 18/SmallcapsGlow Map View 76x50 Tactical HUD 1 Map Filters NONE Filters NONE Steam 1 RUN: f647b825-b41f-4810-a3f7-2324d16597c1